Cogmind - Beta 17 @@@ ROGUE MODE // 2026.08.04 @ 11:40:59 Player: Afro Result: Destroyed by Y-72 Warden with Railgun Performance ------------- Evolutions (8) 4000 Regions Visited (12) 2400 Robots Destroyed (107) 535 Value Destroyed (3202) 3202 Prototype IDs (8) 160 Alien Tech Used (0) 0 Bonus (-155) -155 TOTAL SCORE: 10142 Bonus ------- Friendly Fire -155 Cogmind --------- Core Integrity 0/1450 Matter 235/300 Energy 99/100 System Corruption 3% Temperature Cool (9) Movement Core (50) Location -2/Research Parts ------- > --- POWER (2) -------- (None) > --- PROPULSION (5) --- (None) > --- UTILITY (13) ----- Spectral Analyzer Improved Melee Analysis Suite Improved Melee Analysis Suite > --- WEAPON (3) ------- (None) > --- INVENTORY (5) ---- Advanced VSS Leg Combat Linear Gravjet Peak State ------------ > --- POWER ------------ Light Fission Core Micro Antimatter Reactor > --- PROPULSION ------- Improved Antigrav System Improved Antigrav System Field Propulsion Array > --- UTILITY ---------- Experimental Matter Compressor Improved Signal Interpreter Advanced Transmission Jammer Improved Reaction Control System Hacking Suite Hacking Suite Hacking Suite Improved Hacking Suite System Shield System Shield Advanced Corruption Screen > --- WEAPON ----------- Spear Lance > --- INVENTORY -------- Micro Antimatter Reactor Improved Antigrav System Advanced Sensor Array Proton Missile Launcher [Rating: 105] Favorites ----------- Power Cooled Ion Engine Engine Cooled Ion Engine Power Core Light Fission Core Reactor Light Antimatter Reactor Propulsion Light Treads Treads Light Treads Leg Aluminum Leg Hover Unit Improved Antigrav System Flight Unit Cesium-ion Thruster Utility Hacking Suite Device Structural Scanner Storage Large Storage Unit Processor Signal Interpreter Hackware Hacking Suite Protection Medium Armor Plating Weapon Autogun Energy Gun Improved EM Shotgun Energy Cannon Particle Cannon Ballistic Gun Autogun Ballistic Cannon Gauss Cannon Launcher Rocket Launcher Special Weapon Mining Laser Piercing Weapon Spear Special Melee Weapon Improved Datajack Build | -11 -10 -9 -9 -9 -8 -8 -7 -6 -5 -4 -3 -2 ------- Run | Yrd Mat Mat Min Exi Min Mat Fac Fac Fac Fac Res Res Slots Evolved 16 | . . 2 . . . 2 2 2 2 2 2 2 Power 1 | . . . . . . . . 1 . . . . Propulsion 3 | . . 1 . . . . 1 . . . . 1 Utility 11 | . . . . . . 2 1 1 2 2 2 1 Weapon 1 | . . 1 . . . . . . . . . . Parts Attached 132 | 7 15 13 4 . 2 16 10 19 5 7 23 11 Power 29 | 1 3 4 . . 1 . 3 8 . 3 6 . Engine 11 | 1 2 4 . . 1 . 2 1 . . . . Core 14 | . 1 . . . . . 1 7 . 2 3 . Reactor 4 | . . . . . . . . . . 1 3 . Propulsion 38 | 2 . 5 . . . 8 5 5 1 . 9 3 Treads 7 | 2 . 4 . . . 1 . . . . . . Leg 8 | . . . . . . 7 . . . . . 1 Wheel . | . . . . . . . . . . . . . Hover 9 | . . . . . . . . . . . 8 1 Flight 14 | . . 1 . . . . 5 5 1 . 1 1 Utility 39 | 2 4 . . . 1 5 2 5 3 3 7 7 Device 15 | 1 2 . . . . . 1 2 . 2 4 3 Storage 3 | 1 1 . . . . . . . . . 1 . Processor 8 | . 1 . . . . 1 . 1 . 1 1 3 Hackware 9 | . . . . . . 2 1 2 2 . 1 1 Protection 4 | . . . . . 1 2 . . 1 . . . Artifact . | . . . . . . . . . . . . . Weapon 26 | 2 8 4 4 . . 3 . 1 1 1 1 1 Energy Gun 1 | . . 1 . . . . . . . . . . Energy Cannon 2 | . 2 . . . . . . . . . . . Ballistic Gun 13 | 2 5 3 2 . . 1 . . . . . . Ballistic Cannon 3 | . . . 2 . . . . . . . . 1 Launcher 2 | . . . . . . 1 . 1 . . . . Special Weapon 2 | . 1 . . . . . . . . 1 . . Impact Weapon . | . . . . . . . . . . . . . Slashing Weapon . | . . . . . . . . . . . . . Piercing Weapon 2 | . . . . . . 1 . . . . 1 . Special Melee Weapon 1 | . . . . . . . . . 1 . . . Unidentified Prototypes 8 | . . 4 . . . 1 . . . 1 1 1 Parts Lost 52 | . 1 . . . 1 1 . 6 1 . 33 9 Power 10 | . 1 . . . . . . 3 . . 6 . Propulsion 17 | . . . . . . 1 . 3 1 . 11 1 Utility 20 | . . . . . 1 . . . . . 12 7 Weapon 5 | . . . . . . . . . . . 4 1 Highest Loss Streak 24 | . 1 . . . 1 1 . 6 1 . 24 4 To Critical Strikes . | . . . . . . . . . . . . . Average Backups 11 | 4 11 14 15 15 14 14 6 4 3 4 3 . Power 1 | 1 1 1 1 1 1 2 1 . 1 1 . . Propulsion 2 | 1 3 3 4 4 4 4 1 . . 1 . . Utility 3 | . 1 5 6 6 5 4 3 3 . . . . Weapon 3 | 1 3 4 4 4 4 3 . . 1 1 . . Tool/Special . | . . . . . . . . . . . . . Unused Backups 24 | . 4 5 3 . 1 4 2 . . 3 1 1 Power 8 | . 1 3 . . 1 1 . . . 2 . . Propulsion 4 | . 2 1 . . . . . . . . . 1 Utility 5 | . . 1 . . . 1 2 . . 1 . . Weapon 7 | . 1 . 3 . . 2 . . . . 1 . Tool/Special . | . . . . . . . . . . . . . Average Slot Usage (%) 91 | . 99 98 100 100 100 93 97 83 89 86 75 19 Engine 7 | . 7 10 11 11 11 9 4 1 . . . . Core 2 | . 6 . . . . . 2 8 11 7 3 . Treads 17 | . 28 33 33 33 33 11 . . . . . . Leg 3 | . . . . . . 15 4 . . . . . Flight 4 | . . . . . . . 24 23 22 15 7 . Device 3 | . 12 . . . . . 5 5 2 3 7 1 Storage 7 | . 14 11 11 11 11 9 1 . . . . . Processor 5 | . 1 11 11 11 4 . 7 6 5 9 7 6 Hackware 9 | . . . . . . 8 22 26 29 31 27 9 Protection 3 | . . . . . 6 11 . . 4 5 1 . Ballistic Gun 16 | . 22 32 30 22 22 16 3 . . . . . Ballistic Cannon 3 | . . . 2 11 11 8 6 1 . . . . Piercing Weapon 1 | . . . . . . 1 5 6 5 5 5 . Peak Build Rating 105 | 7 13 17 24 24 25 41 43 51 62 83 105 39 Average Rating 31 | 4 10 15 18 24 24 33 37 42 56 73 80 22 On Entrance 29 | . 7 12 17 24 24 25 38 37 49 62 79 9 Avg Prop Armor Cover (%) 6 | . . . . . . 4 . . . . 7 . Naked Turns . | . . . . . . . . . . . . . Heaviest Build 64 | 15 36 37 43 43 50 64 42 20 19 26 27 13 Greatest Support 62 | 40 40 60 60 60 60 62 51 21 23 27 48 25 Greatest Overweight (x) 4 | . . . . . . 3 . 1 . . 2 4 Average Overweight (x) . | . . . . . . 1 . . . . . . Largest Inventory Capacity 15 | 8 15 15 15 15 15 15 15 5 5 5 5 5 Average Capacity 11 | 7 11 15 15 15 15 15 6 5 5 5 5 5 Most Carried 15 | 6 15 15 15 15 15 15 15 5 5 5 5 2 Average Carried 11 | 4 11 14 14 15 14 14 6 4 4 4 3 . Final Capacity 15 | 8 15 15 15 15 15 15 5 5 5 5 5 5 Final Carried 15 | 5 15 15 15 15 15 15 5 5 3 5 . 2 Class Distribution -------------------- 25% | Gunner 20% | Tank 18% | Mutant 10% | Hacker-Sprinter 7% | Wizard-Sprinter 6% | Hacker-Mutant 5% | Hacker-Tank 3% | Wizard-Mutant Dominant Class ---------------- Mutant | -10/Materials Gunner | -9/Materials Gunner | -9/Mines Gunner | -9/Exiles Tank | -8/Mines Tank | -8/Materials Hacker-Sprinter | -7/Factory Hacker-Sprinter | -6/Factory Hacker-Sprinter | -5/Factory Wizard-Sprinter | -4/Factory Wizard-Mutant | -3/Research Hacker-Mutant | -2/Research Resources | -11 -10 -9 -9 -9 -8 -8 -7 -6 -5 -4 -3 -2 ----------- Run | Yrd Mat Mat Min Exi Min Mat Fac Fac Fac Fac Res Res Matter Collected 3533 | 178 486 553 190 . 212 832 199 56 61 209 359 198 Remotely . | . . . . . . . . . . . . . Salvage Created 3740 | 107 610 754 88 . 251 858 53 64 61 209 399 286 Parts 244 | 7 39 53 3 . 10 49 3 2 5 28 35 10 Haulers Intercepted 3 | . 1 2 . . . . . . . . . . Recyclers Shooed 2 | . . . . . . 1 . . . . 1 . Parts Field Recycled . | . . . . . . . . . . . . . Retrieved Matter . | . . . . . . . . . . . . . Parts Self-Destructed . | . . . . . . . . . . . . . Prevented . | . . . . . . . . . . . . . Parts Restored . | . . . . . . . . . . . . . Kills | -11 -10 -9 -9 -9 -8 -8 -7 -6 -5 -4 -3 -2 ------- Run | Yrd Mat Mat Min Exi Min Mat Fac Fac Fac Fac Res Res Combat Hostiles Destroyed 72 | . 15 17 1 . 5 21 1 3 . 2 5 2 Melee 11 | . . . . . . . 1 3 . 2 5 . Guns 40 | . 13 17 1 . 3 6 . . . . . . Cannons 15 | . 1 . . . 2 10 . . . . . 2 AOE 5 | . . . . . . 5 . . . . . . Classes Destroyed 11 | 2 5 2 . . 1 . . . . 1 . . Worker 4 | . . 1 . . . 1 . . . 1 . 1 Builder 12 | . 1 . . . 1 4 . . 1 3 2 . Tunneler 6 | 3 . . . . 1 . . . . 1 1 . Hauler 3 | . 1 2 . . . . . . . . . . Recycler 3 | 1 1 . . . . . . . . . . 1 Watcher 6 | . 1 2 . . . 2 . . 1 . . . Swarmer 16 | . 6 4 . . . 3 . 3 . . . . Grunt 42 | . 9 10 1 . 4 15 1 . . . . 2 Brawler 1 | . . . . . 1 . . . . . . . Sentry 6 | . . 3 . . . 3 . . . . . . Programmer 7 | . . . . . . . . . . 2 5 . Thug 1 | . . . 1 . . . . . . . . . Best Kill Streak 6 | 3 5 6 1 . 3 6 1 2 1 2 2 4 Combat Bots Only 6 | . 5 6 1 . 3 5 1 2 . 2 2 2 Max Kills in Single Turn 5 | 1 2 2 2 . 1 5 1 1 1 1 1 1 Gunslinging 1 | . 1 1 . . . . . . . . . . Exploded 3 | . . . . . . 3 . . . . . . Melee 1 | . . . . . . . 1 1 . 1 1 . Uniques/NPCs Destroyed . | . . . . . . . . . . . . . Combat | -11 -10 -9 -9 -9 -8 -8 -7 -6 -5 -4 -3 -2 -------- Run | Yrd Mat Mat Min Exi Min Mat Fac Fac Fac Fac Res Res Hostile Shots Fired 635 | . 70 76 . . 7 78 6 51 7 13 202 125 Missed 196 | . 18 16 . . 1 21 4 10 5 6 77 38 Hits 439 | . 52 60 . . 6 57 2 41 2 7 125 87 Melee 1 | . . . . . 1 . . . . . . . Projectile 438 | . 52 60 . . 5 57 2 41 2 7 125 87 AOE 1 | . . . . . . . . . . . 1 . Critical Strikes 14 | . 2 . . . 2 . 1 . . . 9 . Part Disruptions 1 | . . . . . . . . . . . 1 . Damage Taken 8571 | . 617 654 . . 117 981 75 457 126 143 3361 2040 Core 3116 | . 101 160 . . 13 13 15 97 23 25 1218 1451 Absorbed by Shields . | . . . . . . . . . . . . . Regen/Repaired (Parts) 20 | . . . . . . . . . . 20 . . Core Remaining (%) 77 | 100 59 . . . 56 97 97 88 97 97 6 . Volleys Fired 185 | 8 61 39 3 . 9 46 1 . . . 5 13 Largest 3 | 2 2 3 3 . 3 3 1 . . . 1 1 Hottest 136 | 40 136 69 96 . 96 98 33 . . . 39 58 Shots Fired 441 | 16 119 117 9 . 28 133 1 . . . 5 13 Gun 339 | 16 98 117 6 . 19 83 . . . . . . Cannon 89 | . 18 . 3 . 9 46 . . . . . 13 Launcher 10 | . . . . . . 4 1 . . . 5 . Special 3 | . 3 . . . . . . . . . . . Kinetic 410 | 16 98 117 9 . 28 129 . . . . . 13 Thermal 21 | . 21 . . . . . . . . . . . Explosive 5 | . . . . . . 4 1 . . . . . Electromagnetic 5 | . . . . . . . . . . . 5 . Robot Hit Streak 14 | 4 13 14 1 . 9 13 . . . . 6 7 Robot Miss Streak 7 | 1 7 4 4 . 1 4 . . . . . 2 Penetration Max 1 | . . . . . 1 1 . . . . . . Secondary Targets 7 | . 3 4 . . . . . . . . . . Max Gunslinging Chain 1 | . 1 1 . . . . . . . . . . Shots Hit Robots 327 | 11 75 75 2 . 19 76 3 7 8 12 30 9 Core Hits 158 | 5 28 30 4 . 8 46 2 3 2 7 17 6 Critical Kills 2 | . 1 . . . 1 . . . . . . . Critical Parts Destroyed 1 | . 1 . . . . . . . . . . . Critical Strikes 19 | . 2 . . . 4 5 . . 1 1 4 2 Meltdown 1 | . 1 . . . . . . . . . . . Destroy 2 | . 1 . . . 1 . . . . . . . Blast 10 | . . . . . 3 5 . . . . . 2 Impale 6 | . . . . . . . . . 1 1 4 . Melee Attacks 169 | . . . . . . 6 14 46 21 36 46 . Impact . | . . . . . . . . . . . . . Slashing . | . . . . . . . . . . . . . Piercing 164 | . . . . . . 6 14 46 18 35 45 . Sneak Attacks 14 | . . . . . . 1 . . 4 7 2 . Combat Hostiles . | . . . . . . . . . . . . . Follow-up Attacks 2 | . . . . . . . . . . . 2 . Damage Inflicted 8298 | 165 998 1279 111 . 475 2494 81 194 229 619 1127 526 Guns 3403 | 165 728 1239 62 . 269 940 . . . . . . Cannons 1820 | . 255 . 35 . 169 886 . . . . . 475 Explosions 683 | . . . . . . 576 . . . . 107 . Melee 2138 | . . . . . . 42 81 194 229 619 973 . Ramming 254 | . 15 40 14 . 37 50 . . . . 47 51 Kinetic 4968 | 165 728 1239 97 . 438 1826 . . . . . 475 Thermal 255 | . 255 . . . . . . . . . . . Explosive 576 | . . . . . . 576 . . . . . . Electromagnetic 107 | . . . . . . . . . . . 107 . Impact . | . . . . . . . . . . . . . Slashing . | . . . . . . . . . . . . . Piercing 2138 | . . . . . . 42 81 194 229 619 973 . Highest Corruption 18 | . . 4 4 4 9 . . . . 1 18 3 Average Corruption 4 | . . 1 4 4 7 . . . . 1 5 3 Corruption Purged . | . . . . . . . . . . . . . Corruption Blocked 14 | . . . . . . . . . . . 14 . Effects 78 | . . 11 14 5 32 . . . . . 11 5 Message Errors 21 | . . 3 2 2 11 . . . . . 2 1 Matter Fused 22 | . . 4 6 1 6 . . . . . 3 2 Heat Flow Errors 12 | . . 1 3 . 6 . . . . . 2 . Energy Discharges 6 | . . 2 1 . 2 . . . . . 1 . Parts Fused 2 | . . . . . . . . . . . 1 1 Data Loss (minor) 11 | . . . 1 2 5 . . . . . 2 1 Data Loss (major) 3 | . . 1 1 . 1 . . . . . . . Misfires 1 | . . . . . 1 . . . . . . . Overload Shots . | . . . . . . . . . . . . . Overflow Damage 325 | . . . . . . 44 . 1 49 98 114 19 Projectiles 22 | . . . . . . 3 . . . . . 19 Explosions 29 | . . . . . . 29 . . . . . . Melee 274 | . . . . . . 12 . 1 49 98 114 . Knockbacks 11 | . . . . . 1 6 . . . . . 4 Impact . | . . . . . . . . . . . . . Kinetic 10 | . . . . . 1 6 . . . . . 3 Secondary 1 | . . . . . . . . . . . . 1 Self-Inflicted Damage 211 | . . . . . . 119 46 . . . 23 23 Shots 3 | . . . . . . 2 1 . . . . . Rammed 35 | . 3 5 3 . 3 1 . . . . 6 14 Targets Rammed 47 | . 4 7 3 . 4 9 . . . . 6 14 Kicked 8 | . . . . . . 8 . . . . . . Crushed 4 | . 1 2 . . 1 . . . . . . . Highest Temperature 335 | . 335 256 185 . 242 293 . 71 110 4 194 . Average Temperature 63 | . 56 62 67 . 83 74 . 36 40 2 72 . Received Heat Transfer 1542 | . 330 210 . . 81 432 9 36 18 18 111 297 Effects 2 | . . . . . . 2 . . . . . . Interference 2 | . . . . . . 2 . . . . . . Siege Activations . | . . . . . . . . . . . . . Martial Activations . | . . . . . . . . . . . . . Shielding Activations . | . . . . . . . . . . . . . Robots Disrupted . | . . . . . . . . . . . . . Combat Hostiles . | . . . . . . . . . . . . . Robots Corrupted 1 | . . . . . 1 . . . . . . . Combat Hostiles . | . . . . . . . . . . . . . Parts Fried 2 | . . . . . 2 . . . . . . . Impact Corruptions 1 | . . . . . 1 . . . . . . . Robots Melted 1 | . 1 . . . . . . . . . . . Combat Hostiles 1 | . 1 . . . . . . . . . . . Parts Melted 1 | . 1 . . . . . . . . . . . Heat Transferred 444 | . 444 . . . . . . . . . . . Parts Sabotaged . | . . . . . . . . . . . . . Parts Stolen . | . . . . . . . . . . . . . Parts Stripped . | . . . . . . . . . . . . . Power Chain Reactions . | . . . . . . . . . . . . . Alert | -11 -10 -9 -9 -9 -8 -8 -7 -6 -5 -4 -3 -2 ------- Run | Yrd Mat Mat Min Exi Min Mat Fac Fac Fac Fac Res Res Maximum Alert Level 1 | . . 1 . . . 1 . . . . . . Low Security (%) 97 | 100 100 97 100 . 100 92 100 100 100 100 100 100 Level 1 2 | . . 2 . . . 7 . . . . . . Level 2 . | . . . . . . . . . . . . . Level 3 . | . . . . . . . . . . . . . Level 4 . | . . . . . . . . . . . . . Level 5 . | . . . . . . . . . . . . . High Security . | . . . . . . . . . . . . . Max Security . | . . . . . . . . . . . . . Peak Influence 347 | 10 137 205 73 . 54 347 160 62 33 72 45 82 Initial 156 | . . . 73 . . . 156 48 9 . 30 6 Average 40 | . 47 63 15 . 5 58 131 15 11 19 7 32 Influence Increases 2996 | 20 435 523 22 . 152 766 93 216 101 213 233 222 Destroy 0b10 Robot/C 1440 | . 300 340 20 . 100 420 20 60 . 40 100 40 Destroy 0b10 Robot/NC 170 | 20 20 25 . . 10 35 . . 10 25 15 10 Destroy Leader 268 | . 54 78 . . 10 74 . . 2 10 30 10 Successful Hack 111 | . 14 27 . . . 5 28 31 . . . 6 Disable Machine 120 | . 15 15 . . . 75 . . . . 15 . Destroy Structure 287 | . 2 8 2 . 2 127 15 35 14 48 28 6 Partial Spotted 180 | . . . . . . . 30 60 45 15 . 30 Lose Combat Pursuer 420 | . 30 30 . . 30 30 . 30 30 75 45 120 Influence Decreases 2966 | 20 435 334 211 . 152 421 339 294 120 157 279 204 Entered New Map 404 | . . . 116 . . . 189 51 12 2 28 6 Time Decay 2259 | 20 425 334 95 . 142 411 150 203 82 145 136 116 Lost Part 273 | . 10 . . . 10 10 . 40 6 . 115 82 Lost Ally 30 | . . . . . . . . . 20 10 . . Squads Dispatched 17 | . 1 2 1 . . 2 2 1 1 1 3 3 Investigation 6 | . 1 1 1 . . 1 . . . 1 . 1 Extermination 6 | . . . . . . . 1 1 1 . 3 . Reinforcement 5 | . . 1 . . . 1 1 . . . . 2 Assault . | . . . . . . . . . . . . . Garrison . | . . . . . . . . . . . . . Intercept . | . . . . . . . . . . . . . Searches Triggered . | . . . . . . . . . . . . . Construction Impeded 2 | . . . . . . 1 . . . . . 1 Haulers Reinforced . | . . . . . . . . . . . . . Active Scanning Responses . | . . . . . . . . . . . . . Cargo Convoy Interrupts . | . . . . . . . . . . . . . Stealth | -11 -10 -9 -9 -9 -8 -8 -7 -6 -5 -4 -3 -2 --------- Run | Yrd Mat Mat Min Exi Min Mat Fac Fac Fac Fac Res Res Distress Signals 12 | . 1 4 . . . 4 . . . . 2 1 Communications Jammed 1 | . . . . . . . . . 1 . . . Distress Signals 1 | . . . . . . . . . 1 . . . Times Spotted 172 | . 27 29 1 . 7 41 4 8 7 10 19 19 Peak Tracking Total 14 | . 6 8 1 . 3 7 1 5 4 3 9 14 Tactical Retreats 23 | . 2 2 . . 2 2 . 2 2 3 3 5 Traps | -11 -10 -9 -9 -9 -8 -8 -7 -6 -5 -4 -3 -2 ------- Run | Yrd Mat Mat Min Exi Min Mat Fac Fac Fac Fac Res Res Traps Triggered 4 | . 1 1 . . . 1 . . 1 . . . Indirectly . | . . . . . . . . . . . . . Trap Hack Attempts . | . . . . . . . . . . . . . Triggered . | . . . . . . . . . . . . . Disarmed . | . . . . . . . . . . . . . Reprogrammed . | . . . . . . . . . . . . . Reused . | . . . . . . . . . . . . . Traps Extracted . | . . . . . . . . . . . . . Installed . | . . . . . . . . . . . . . Triggered . | . . . . . . . . . . . . . Machines | -11 -10 -9 -9 -9 -8 -8 -7 -6 -5 -4 -3 -2 ---------- Run | Yrd Mat Mat Min Exi Min Mat Fac Fac Fac Fac Res Res Machines Disabled 8 | . 1 1 . . . 5 . . . . 1 . Max in Single Turn 3 | . 1 1 . . . 3 . . . . 1 . Garrison Access 3 | . . . . . . . . 2 . 1 . . Machines Repaired . | . . . . . . . . . . . . . Machines Dismantled . | . . . . . . . . . . . . . Machines Sabotaged . | . . . . . . . . . . . . . Overloaded Fab Kills . | . . . . . . . . . . . . . Hacking | -11 -10 -9 -9 -9 -8 -8 -7 -6 -5 -4 -3 -2 --------- Run | Yrd Mat Mat Min Exi Min Mat Fac Fac Fac Fac Res Res Machines Accessed 50 | . 9 9 1 1 . 6 5 9 1 6 1 2 Terminals 35 | . 8 6 . . . 5 4 6 1 2 1 2 Fabricators 1 | . . . . . . . . . . 1 . . Repair Stations 1 | . . . . . . . . . . 1 . . Recycling Units 3 | . 1 1 . . . 1 . . . . . . Scanalyzers 4 | . . 2 . . . . . 1 . 1 . . Garrison Access 4 | . . . . . . . 1 2 . 1 . . Total Hacks 166 | . 21 35 1 3 . 16 25 28 2 24 4 7 Successful 115 | . 11 24 1 3 . 7 17 25 2 21 1 3 Failed 46 | . 9 10 . . . 9 7 2 . 2 3 4 Catastrophic 5 | . 1 . . . . 2 . . . . 1 1 Database Lockouts 5 | . 1 1 . . . . 1 1 . 1 . . Manual 142 | . 26 24 . . . 16 22 25 3 13 5 8 Terminals 125 | . 20 21 . . . 15 24 20 2 12 4 7 Fabricators 2 | . . . . . . . . . . 2 . . Repair Stations 2 | . . . . . . . . . . 2 . . Recycling Units 3 | . 1 1 . . . 1 . . . . . . Scanalyzers 26 | . . 13 . . . . . 6 . 7 . . Garrison Access 4 | . . . . . . . 1 2 . 1 . . Terminal Hacks 17 | . 1 1 1 3 . . 5 4 . 2 . . Record 3 | . . . . 3 . . . . . . . . Robot Analysis 8 | . 1 1 . . . . 2 4 . . . . Open Door 1 | . . . 1 . . . . . . . . . Level Access Points 2 | . . . . . . . 1 . . 1 . . Branch Access Points 2 | . . . . . . . 1 . . 1 . . Locate Traps 1 | . . . . . . . 1 . . . . . Fabricator Hacks 2 | . . . . . . . . . . 2 . . Load Schematic 1 | . . . . . . . . . . 1 . . Build 1 | . . . . . . . . . . 1 . . Repair Station Hacks 2 | . . . . . . . . . . 2 . . Scan Component 1 | . . . . . . . . . . 1 . . Repair 1 | . . . . . . . . . . 1 . . Recycling Unit Hacks . | . . . . . . . . . . . . . Scanalyzer 24 | . . 11 . . . . . 6 . 7 . . Insert Component 8 | . . 4 . . . . . 3 . 1 . . Analyze 10 | . . 6 . . . . . 3 . 1 . . Retrieve Study 6 | . . 1 . . . . . . . 5 . . Garrison Access Hacks 3 | . . . . . . . . 2 . 1 . . Seal Access 3 | . . . . . . . . 2 . 1 . . Unauthorized Hacks 63 | . 9 12 . . . 6 12 13 2 5 1 3 Terminals 63 | . 9 12 . . . 6 12 13 2 5 1 3 Track 13 | . 4 2 . . . 1 3 1 . 1 . 1 Assimilate 19 | . . 4 . . . 1 4 6 1 2 . 1 Botnet 29 | . 4 6 . . . 4 4 6 1 2 1 1 Operators 2 | . 1 . . . . . 1 . . . . . Fabricators . | . . . . . . . . . . . . . Repair Stations . | . . . . . . . . . . . . . Recycling Units . | . . . . . . . . . . . . . Scanalyzers . | . . . . . . . . . . . . . Garrison Access . | . . . . . . . . . . . . . Data Cores Recovered . | . . . . . . . . . . . . . Used . | . . . . . . . . . . . . . Hacking Detections 38 | . 7 9 . . . 5 5 5 1 3 1 2 Full Trace Events 5 | . . 2 . . . 1 . . . 1 . 1 Feedback Events 2 | . . 1 . . . . . . . . . 1 Corruption 1 | . . 1 . . . . . . . . . . Hackware Fried 1 | . . . . . . . . . . . . 1 Feedback Blocked . | . . . . . . . . . . . . . Robot Schematics Acquired . | . . . . . . . . . . . . . Robots Built . | . . . . . . . . . . . . . Authchips . | . . . . . . . . . . . . . Time . | . . . . . . . . . . . . . Total Robot Build Rating . | . . . . . . . . . . . . . Part Schematics Acquired 7 | . . 3 . . . . . 3 . 1 . . Parts Built 1 | . . . . . . . . . . 1 . . Authchips . | . . . . . . . . . . . . . Time 36 | . . . . . . . . . . 36 . . Total Part Build Rating 3 | . . . . . . . . . . 3 . . Part Studies Acquired 5 | . . . . . . . . . . 5 . . Parts Repaired 1 | . . . . . . . . . . 1 . . Time 31 | . . . . . . . . . . 31 . . Parts Recycled . | . . . . . . . . . . . . . Recycled Matter . | . . . . . . . . . . . . . Retrieved Matter . | . . . . . . . . . . . . . Retrieved Components . | . . . . . . . . . . . . . Parts Scanalyzed 8 | . . 4 . . . . . 3 . 1 . . Part Schematics Acquired 7 | . . 3 . . . . . 3 . 1 . . Parts Damaged 1 | . . . . . . . . . . 1 . . Bothacking | -11 -10 -9 -9 -9 -8 -8 -7 -6 -5 -4 -3 -2 ------------ Run | Yrd Mat Mat Min Exi Min Mat Fac Fac Fac Fac Res Res Used RIF Installer . | . . . . . . . . . . . . . Robots Hacked 4 | . . . . . . . . . 2 1 1 . Non-combat 3 | . . . . . . . . . 2 1 . . Combat 1 | . . . . . . . . . . . 1 . Robot Hacks Applied 5 | . . . . . . . . . 3 1 1 . parse_system 1 | . . . . . . . . . . . 1 . no_distress 3 | . . . . . . . . . 2 1 . . find_chute 1 | . . . . . . . . . 1 . . . Relay Couplers Released . | . . . . . . . . . . . . . Fabnet Peak Effective % . | . . . . . . . . . . . . . Robots Rewired . | . . . . . . . . . . . . . Allies Hacked . | . . . . . . . . . . . . . Hacks Repelled . | . . . . . . . . . . . . . Allies | -11 -10 -9 -9 -9 -8 -8 -7 -6 -5 -4 -3 -2 -------- Run | Yrd Mat Mat Min Exi Min Mat Fac Fac Fac Fac Res Res Total Allies 4 | . . . . . . . 1 2 . 1 . . Largest Group 2 | . . . . . . . 1 2 2 1 . . Highest-Rated Group 36 | . . . . . . . 10 36 36 26 . . Highest-Rated Ally 26 | . . . . . . . 10 26 26 26 . . Total Orders . | . . . . . . . . . . . . . Ally Attacks . | . . . . . . . . . . . . . Total Damage . | . . . . . . . . . . . . . Kills . | . . . . . . . . . . . . . Allies Corrupted . | . . . . . . . . . . . . . Allies Melted . | . . . . . . . . . . . . . Intel | -11 -10 -9 -9 -9 -8 -8 -7 -6 -5 -4 -3 -2 ------- Run | Yrd Mat Mat Min Exi Min Mat Fac Fac Fac Fac Res Res Active Infowar (turns) 3302 | 33 1216 . . . . . 261 585 95 295 708 109 Optics 81 | . . . . . . . . . . . . 81 Sensors 255 | . . . . . . . . . . . 255 . Terrain 2 | . . . . . . . . 2 . . . . Structural 1474 | . 752 . . . . . 261 338 . . 123 . Seismic 497 | 33 464 . . . . . . . . . . . Cloaking 5 | . . . . . . . . . . . . 5 Jamming 1228 | . . . . . . . . 245 95 295 565 28 Robot Analysis Total 8 | . 1 1 . . . . 2 4 . . . . Derelict Logs Recovered . | . . . . . . . . . . . . . Drone Launches . | . . . . . . . . . . . . . Drone Recoveries . | . . . . . . . . . . . . . Exploration | -11 -10 -9 -9 -9 -8 -8 -7 -6 -5 -4 -3 -2 ------------- Run | Yrd Mat Mat Min Exi Min Mat Fac Fac Fac Fac Res Res Turns Passed 9870 | 146 1458 1579 413 204 1083 2244 317 703 199 448 789 287 Spaces Moved 8621 | 69 729 794 242 128 648 802 760 1753 428 782 1082 404 Core 329 | 3 . . . . . . . . . . 8 318 Treads 2764 | 66 729 794 242 128 648 157 . . . . . . Legs 683 | . . . . . . 645 37 . . . . 1 Wheels . | . . . . . . . . . . . . . Hover 547 | . . . . . . . . . . . 547 . Flight 4298 | . . . . . . . 723 1753 428 782 527 85 Fastest Speed 26 | 50 160 160 160 160 160 120 26 26 27 30 30 45 Average Speed 90 | 155 160 160 160 160 160 229 30 27 27 30 44 51 Slowest Speed 330 | 160 160 160 160 160 160 330 120 112 30 30 150 250 Overloaded Moves . | . . . . . . . . . . . . . Propulsion Burnouts . | . . . . . . . . . . . . . Robots Hopped 11 | . . . . . . . . 8 . 1 1 1 Potential Cave-ins . | . . . . . . . . . . . . . Cave-ins Triggered 1 | . . . . . . . . . . . 1 . Exploration Rate (%) 37 | 4 98 43 50 49 99 44 19 28 11 12 19 9 Regions Visited 12 Branch Regions 3 Pre-discovered Areas 1 | . . . . 1 . . . . . . . . Known Exits Taken 10 | . 1 1 1 1 1 1 1 1 1 1 . . Unknown Exits Taken 2 | 1 . . . . . . . . . . 1 . Scrap Searched 4 | . . . 1 . 3 . . . . . . . Spaces Dug 94 | . . . . . . 4 10 35 7 24 14 . Terrain Destroyed 233 | . . . 3 . 6 127 15 35 7 24 14 2 Melee 94 | . . . . . . 4 10 35 7 24 14 . Projectile 34 | . . . 3 . 6 23 . . . . . 2 AOE 105 | . . . . . . 100 5 . . . . . Terrain Rammed . | . . . . . . . . . . . . . Walls Destroyed . | . . . . . . . . . . . . . Machines Disabled . | . . . . . . . . . . . . . Actions | -11 -10 -9 -9 -9 -8 -8 -7 -6 -5 -4 -3 -2 --------- Run | Yrd Mat Mat Min Exi Min Mat Fac Fac Fac Fac Res Res Total 10128 | 89 910 1038 263 127 673 1105 826 1893 483 943 1314 464 Wait 765 | . 66 152 . . 4 189 15 59 26 98 136 20 Move 8587 | 68 728 793 241 127 647 801 759 1736 427 779 1079 402 Hop 11 | . . . . . . . . 8 . 1 1 1 Pick Up 73 | 6 15 12 4 . 4 7 5 4 2 7 6 1 Fast Attach 73 | 6 5 5 1 . . 8 4 9 . 6 18 11 Attach 34 | 1 1 4 . . 1 2 7 5 5 1 7 . Detach 15 | . 2 . . . . . 6 3 1 . 2 1 Swap 58 | . 12 6 3 . 1 18 5 9 . 3 1 . Drop 113 | . 16 20 8 . 3 19 10 14 1 12 9 1 Fire 185 | 8 61 39 3 . 9 46 1 . . . 5 13 Melee 167 | . . . . . . 6 14 46 21 36 44 . Ram 19 | . . . . . . . . . . . 5 14 Kick 8 | . . . . . . 8 . . . . . . Crush 19 | . 4 7 3 . 4 1 . . . . . . Escape Stasis 1 | . . . . . . . . . . . 1 . Rewire . | . . . . . . . . . . . . . Trap . | . . . . . . . . . . . . . Miscellaneous . | . . . . . . . . . . . . . Route ------- -11/Scrapyard -10/Materials (discovered 6 exits: *Mat x3 / [*Min x2] / *Sub) -9/Materials (discovered 2 exits: *Mat / *Min) -9/Mines (discovered 3 exits: *Mat x2 / *Exi) -9/Exiles -8/Mines (discovered 2 exits: *Mat x2) -8/Materials -7/Factory (discovered 6 exits: *Fac x4 / Low x2) -6/Factory (discovered 2 exits: *Fac / *Low) -5/Factory -4/Factory (discovered 7 exits: *Res x4 / Upp x2 / Arm) -3/Research -2/Research History --------- Turn | Location | Event 14 | -11/Scrapyard | Discovered new exit (range 15) 147 | -11/Scrapyard | Entered Materials 311 | -10/Materials | Build established: Mutant 620 | -10/Materials | Discovered new exit (range 6) 745 | -10/Materials | Central database locked down 849 | -10/Materials | Discovered new exit (range 15) 1114 | -10/Materials | Discovered new exit (range 14) 1239 | -10/Materials | Discovered new exit (range 3) 1456 | -10/Materials | Discovered new exit (range 12) 1476 | -10/Materials | Identified exit to Subcaves 1581 | -10/Materials | Discovered new exit (range 16) 1603 | -10/Materials | Identified exit to Materials 1605 | -10/Materials | Entered another Materials area 1605 | -9/Materials | Evolved 2 slots: Propulsion x1, Weapon x1 1778 | -9/Materials | Discovered new exit (range 12) 2031 | -9/Materials | Build established: Gunner 2196 | -9/Materials | Discovered new exit (range 10) 2255 | -9/Materials | Identified exit to Materials 2348 | -9/Materials | Central database locked down 3182 | -9/Materials | Identified exit to Mines 3184 | -9/Materials | Entered Mines 3196 | -9/Mines | Discovered exit to Materials (range 11) 3365 | -9/Mines | Discovered exit to Materials (range 14) 3470 | -9/Mines | Met a Derelict shopkeep closing up shop 3588 | -9/Mines | Deemed a non-threat by the Exiles lab entrance 3588 | -9/Mines | Discovered new exit (range 5) 3592 | -9/Mines | Identified exit to Exiles 3597 | -9/Mines | Entered Exiles 3641 | -9/Exiles | Met 8R-AWN 3663 | -9/Exiles | Met EX-HEX 3724 | -9/Exiles | Met EX-DEC 3735 | -9/Exiles | Learned location of Zion (-6) 3781 | -9/Exiles | Discovered new exit (range 14) 3799 | -9/Exiles | Identified exit to Mines 3801 | -9/Exiles | Entered Mines 3939 | -8/Mines | Discovered exit to Materials (range 4) 4228 | -8/Mines | Discovered exit to Materials (range 6) 4510 | -8/Mines | Build established: Tank 4884 | -8/Mines | Entered Materials 4884 | -8/Materials | Evolved 2 slots: Utility x2 6868 | -8/Materials | Build established: Hacker-Tank 6983 | -8/Materials | Discovered new exit (range 15) 7088 | -8/Materials | Identified exit to Factory 7128 | -8/Materials | Entered Factory 7128 | -7/Factory | Evolved 2 slots: Propulsion x1, Utility x1 7306 | -7/Factory | Central database locked down 7306 | -7/Factory | Identified exit to Lower Caves 7306 | -7/Factory | Identified exit to Factory 7445 | -7/Factory | Entered another Factory area 7445 | -6/Factory | Accompanied by 1 ally 7445 | -6/Factory | Evolved 2 slots: Power x1, Utility x1 7468 | -6/Factory | Build established: Hacker-Sprinter 7803 | -6/Factory | Central database locked down 7823 | -6/Factory | Lost 6 parts (3p3n) 8071 | -6/Factory | Discovered new exit (range 13) 8074 | -6/Factory | Identified exit to Lower Caves 8133 | -6/Factory | Discovered new exit (range 5) 8136 | -6/Factory | Identified exit to Factory 8148 | -6/Factory | Entered another Factory area 8148 | -5/Factory | Accompanied by 2 allies 8148 | -5/Factory | Evolved 2 slots: Utility x2 8156 | -5/Factory | Watched by a mysterious "MATRIX" hacker 8321 | -5/Factory | Discovered new exit (range 16) 8347 | -5/Factory | Identified exit to Factory 8347 | -5/Factory | Entered another Factory area 8347 | -4/Factory | Evolved 2 slots: Utility x2 8522 | -4/Factory | Discovered new exit (range 16) 8607 | -4/Factory | Build established: Wizard-Sprinter 8620 | -4/Factory | Repaired Adv. Transmission Jammer 8646 | -4/Factory | Central database locked down 8646 | -4/Factory | Identified exit to Upper Caves 8646 | -4/Factory | Identified exit to Armory 8646 | -4/Factory | Identified exit to Research 8723 | -4/Factory | Fabricated Hacking Suite? 8795 | -4/Factory | Entered Research 8795 | -3/Research | Evolved 2 slots: Utility x2 9160 | -3/Research | Lost 6 parts (1p2n2u1w) 9360 | -3/Research | Crushed by falling debris 9541 | -3/Research | System corruption reached 10% 9549 | -3/Research | Core integrity fell below 50% 9565 | -3/Research | Core integrity fell below 20% 9578 | -3/Research | Discovered new exit (range 8) 9584 | -3/Research | Entered another Research area 9584 | -2/Research | Evolved 2 slots: Propulsion x1, Utility x1 9606 | -2/Research | Found Prototype Processor 9606 | -2/Research | Identified Spectral Analyzer 9609 | -2/Research | Lost 24 parts (5p8n8u3w) 9755 | -2/Research | Lost 3 parts (2u1w) 9790 | -2/Research | Core integrity fell below 50% 9846 | -2/Research | Core integrity fell below 20% 9868 | -2/Research | System Shield fried by hacking feedback 9871 | -2/Research | Destroyed by Y-72 Warden with Railgun Last Messages --------------- fused. 09817_ Slug penetrates Wall. 09820_ Penetrated by Slug. 09821_ Acquired Field Propulsion Drive. 09829_ Penetrated by Slug. 09832_ Transmission Jammer destroyed. 09848_ Penetrated by Slug. 09848_ Slug penetrates Door. 09849_ Slug penetrates Wall. 09850_ Penetrated by Slug. 09852_ JV0T4LVA163MTVE&VUUMJL X DP#,D3M, 09852_ Slug penetrates A-15 Conveyor. 09852_ A-15 Conveyor destroyed. 09861_ Field Propulsion Drive destroyed. 09864_ Penetrated by Slug. 09865_ Slug penetrates Wall. 09868_ Connecting with Terminal... Feedback: System Shield fried. 09868_ ALERT: Suspicious activity at Terminal R011. Dispatching Investigation squad. Map ----- +----------------------------------------------------+ | #???????# #????###???????????????????? | | #???????# !????? [[#???????????????????? | | #+#####???????# ??????? [!#???????????????????? | | !#######+####+######## #???????????????????? | | !!! # ! #???????????????????? | | !%!! " #???????????????????? | | ! !!! # #???????????????????? | | ### ###+###### # #???????????????????? | | #+###?# # ???# #? #???????????????????? | | ??????# # ?# #? #???????????????????? | | ??????# # ## #??###???????????????????? | | ??????# # ** *## #????????????????????????? | | ??????# # * ##t#????????????????????????? | | ??????###### ##########/########?????????????????? | | ???????????# #????# ##????????????????? | | ??????????## ##???# #????????????????? | | ########### #???#"" Y##????????????????? | | + #???#"" #?????????????????? | | ### #???#"" #?????????????????? | | ####+###??#T !!! #?????????????????? | | """ # = #??#"" !!! #?????????????????? | | """ # #??#"" !!! #?????????????????? | | """ # #??#"" #?????????????????? | | # #??# #?????????????????? | | # #??# #?????????????????? | | # #??# @ #?????????????????? | | ##+######################/#########??????????????? | | ???????? | | ^ ???????? | | ???????? | | w ????????? | | ##+######################################????????? | | #?????????????????????????????????????????? | | #?????????????????????????????????????????? | | """"#?????????????????????????????????????????? | | """"#?????????????????????????????????????????? | | """"#?????????????????????????????????????????? | | """"#?????????????????????????????????????????? | | #?????????????????????????????????????????? | | #?????????????????????????????????????????? | | #?????????????????????????????????????????? | | ########?????????????????????????????????????????? | | """""""??????????????????????????????????????????? | | """"T"""" ??????????????????????????????????????? | | ?????????????????????????????????????? | | #???????????????????????????????????? | | #???????????????????????????????????? | | #???????????????????????????????????? | | #???????????????????????????????????? | | ##+#+#########???????????????????????????????????? | +----------------------------------------------------+ Best States ------------- Heat Dissipation 68 Coolant Potential 50 Energy Generation 65 Energy Capacity 280 Matter Stores 300 Matter Capacity 300 Sight Range 24 Robot Scan Range 16 Terrain Scan Density 10 Jamming Range 16 Corruption Block 20 Armor Coverage 825 Evasion (%) 64 Melee Accuracy 12 Recoil Reduction 3 Offensive Hacking 42 Defensive Hacking 20 Item Schematics ----------------- Hacking Suite | -9/Materials | Scanalyzed Cesium-ion Thruster | -9/Materials | Scanalyzed Cld. Ion Engine | -9/Materials | Scanalyzed Lgt. Fission Core | -6/Factory | Scanalyzed Imp. Light Armor Plating | -6/Factory | Scanalyzed System Shield | -6/Factory | Scanalyzed Melee Analysis Suite | -4/Factory | Scanalyzed Robot Schematics ------------------ None Fabricated ------------ Hacking Suite | x1 | -4/Factory Repaired ---------- Adv. Transmission Jammer | 33% | -4/Factory Studied --------- Cesium-ion Thruster | -4/Factory | Hacked Spear | -4/Factory | Hacked Lgt. Fission Core | -4/Factory | Hacked Fusion Compressor | -4/Factory | Hacked Nuclear Pulse Array | -4/Factory | Hacked Alien Tech Used ----------------- None Achievements -------------- Quantum Hacking Recruitment Drive Challenges ------------ None Game ------ Seed BiometalBattleJetlance Manual? 0 Play Time 02:36:51 Cumulative 80.7 hours Start 2026.08.03 @ 22:12:08 End 2026.08.04 @ 11:40:59 Sessions 3 Manual Loads 0 Difficulty Rogue Special Mode None Game No. 63 Rogue 63 Adventurer 0 Explorer 0 Win Type - Total 1 Types 1/0/0/0/0/0/0/0/0/0 Lore% 23 Gallery% 33 Achievement% 27 Wizard Run 0 Options --------- Layout 1 ASCII 0 Keyboard 0 Movement Mouse Keybinds 0 Fullscreen 2 Font 24/Smallcaps Map View 50x35 Zoom Use 0% Tactical HUD 1 Map Filters NONE Filters NONE Steam 1 RUN: f2d6655e-0655-4522-b98a-e17026a08f17